bitfinex/quotes_ETHUSD_20250326
["timestamp","ask_amount","ask_price","bid_price","bid_amount"]
[1742969765819,0.22270918,2063.0,2062.9,15.3118]
[1742969766822,0.22270918,2063.0,2062.9,16.44700757]
[1742969767117,4.84683,2063.2,2062.9,19.36126833]
[1742969767317,0.22228443,2063.0,2062.9,19.36126833]
[1742969767517,4.84683,2063.2,2062.9,19.36126833]
[1742969767719,0.22228443,2063.0,2062.9,19.36126833]
[1742969767896,4.84683,2063.2,2062.9,19.36126833]
[1742969768100,0.22228443,2063.0,2062.9,19.36126833]
[1742969768292,4.84683,2063.2,2062.9,19.36126833]
[1742969768492,0.22228443,2063.0,2062.9,19.36126833]
[1742969768709,4.84683,2063.2,2062.9,19.36126833]
[1742969768911,0.22228443,2063.0,2062.9,19.36126833]
[1742969769392,9.69387,2063.2,2062.9,19.36126833]
[1742969769594,0.22228443,2063.0,2062.9,19.36126833]
[1742969769919,9.69387,2063.2,2062.9,19.36126833]
[1742969770119,0.22228443,2063.0,2062.9,19.36126833]
[1742969776631,0.22228443,2063.0,2062.9,18.22606076]
[1742969777227,5.06958443,2063.0,2062.9,14.5]
[1742969777398,0.22228443,2063.0,2062.9,14.5]
[1742969779126,0.22228443,2063.0,2062.9,15.47867816]
[1742969783634,0.22228443,2063.0,2062.9,16.61388573]
[1742969792451,5.06958443,2063.0,2062.9,15.47867816]
[1742969795457,0.22228443,2063.0,2062.9,17.44338573]
[1742969795629,4.84687,2063.2,2062.9,17.44338573]
[1742969795836,0.22220485,2063.0,2062.9,16.46470757]
[1742969796044,4.84708,2063.1,2062.9,16.46470757]
[1742969796354,0.22220485,2063.0,2062.9,16.46470757]
[1742969798289,0.22220485,2063.0,2062.9,15.3295]
[1742969798458,0.22220485,2063.0,2062.9,14.5]
[1742969799127,5.06950485,2063.0,2062.9,14.5]
[1742969801862,5.06950485,2063.0,2062.9,15.63520757]
[1742969803261,5.06950485,2063.0,2062.9,14.5]
[1742969803560,5.06950485,2063.0,2062.9,15.48214241]
[1742969813468,0.22220485,2063.0,2062.9,15.48214241]
[1742969815076,5.06950485,2063.0,2062.9,15.48214241]
[1742969815242,0.22220485,2063.0,2062.9,15.48214241]
[1742969817748,5.06950485,2063.0,2062.9,15.48214241]
[1742969818443,7.97007091,2063.0,2062.9,14.5]
[1742969819049,0.7737,2062.5,2062.2,1.81251978]
[1742969819273,4.84895,2062.3,2062.2,1.81251978]
[1742969819742,5.06706111,2062.3,2062.2,16.31251978]
[1742969822176,0.21811111,2062.3,2062.2,17.44772735]
[1742969822381,0.21811111,2062.3,2062.2,18.27322735]
[1742969822559,9.69734,2062.5,2062.2,18.27322735]
[1742969822755,0.21595947,2062.3,2062.2,18.27322735]
[1742969822961,4.84877,2062.4,2062.2,16.31251978]
[1742969823170,0.21606576,2062.3,2062.2,16.31251978]
[1742969827257,5.62195,2062.6,2062.2,17.44772735]
[1742969827462,5.06694544,2062.5,2062.2,17.44772735]
[1742969829886,9.91563544,2062.5,2062.2,17.44772735]
[1742969830802,4.84872,2062.4,2062.2,16.31251978]
[1742969831186,0.21781568,2062.3,2062.2,16.31251978]
[1742969832186,0.21781568,2062.3,2062.2,17.44772735]
[1742969832589,4.84851,2062.5,2062.2,17.44772735]
[1742969832755,0.21781568,2062.3,2062.2,17.44772735]
[1742969832960,4.84851,2062.5,2062.2,17.44772735]
[1742969833162,0.21781568,2062.3,2062.2,17.44772735]
[1742969833361,9.69719,2062.5,2062.2,17.44772735]
[1742969833561,0.21781568,2062.3,2062.2,17.44772735]
[1742969833767,4.84851,2062.5,2062.2,17.44772735]
[1742969833973,0.21574384,2062.3,2062.2,17.44772735]
[1742969834495,4.84851,2062.5,2062.2,17.44772735]
[1742969834684,0.21605373,2062.4,2062.2,17.44772735]
[1742969835995,5.06477373,2062.4,2062.2,17.44772735]
[1742969836596,5.06477373,2062.4,2062.2,16.31251978]
[1742969839198,5.06477373,2062.4,2062.2,14.5]
[1742969839598,5.61185,2062.3,2062.2,14.5]
[1742969840097,5.82420024,2062.3,2062.2,14.5]
[1742969845041,5.06130024,2062.3,2062.2,14.5]
[1742969845325,4.84637,2063.4,2062.5,4.84838]
[1742969845510,4.84637,2063.4,2062.8,1.13520757]
[1742969845511,4.84742,2063.0,2062.8,1.13520757]
[1742969845907,5.794937,2063.3,2062.9,15.63520757]
[1742969846088,4.84697,2063.2,2063.0,1.13520757]
[1742969846293,4.84697,2063.2,2063.1,1.13520757]
[1742969846732,4.84697,2063.2,2063.0,1.13520757]
[1742969846912,4.84697,2063.2,2063.1,14.5]
[1742969849996,4.84697,2063.2,2062.9,2.02912013]
[1742969850245,4.84718,2063.1,2062.9,2.02912013]
[1742969850400,4.84718,2063.1,2062.7,7.64887013]
[1742969850602,0.1839504,2063.0,2062.8,15.74969001]
[1742969853156,5.0313004,2063.0,2062.8,15.74969001]
[1742969856262,0.1839504,2063.0,2062.8,15.74969001]
[1742969858175,5.0312604,2063.0,2062.8,15.74969001]
[1742969858311,0.1839504,2063.0,2062.8,15.74969001]
[1742969858922,0.1839504,2063.0,2062.3,5.39894]
[1742969858923,4.8479,2062.8,2062.3,5.62064]
[1742969859239,5.03279222,2062.7,2062.3,12.49851013]
[1742969859410,5.03279222,2062.7,2062.4,14.5]
[1742969859609,4.8481,2062.7,2062.4,14.5]
[1742969859845,4.8481,2062.7,2062.4,17.49988801]
[1742969860542,4.84826,2062.6,2062.4,14.5]
[1742969860748,0.18281738,2062.5,2062.4,14.5]
[1742969862943,4.84804,2062.7,2062.4,14.5]
[1742969863113,0.18241345,2062.6,2062.4,14.5]
[1742969863642,0.18241345,2062.6,2062.4,19.34856]
[1742969863812,0.18241345,2062.6,2062.5,7.24406814]
[1742969864012,5.62879,2062.9,2062.5,7.24406814]
[1742969864239,0.18255951,2062.6,2062.5,9.87760013]
[1742969864440,5.62879,2062.9,2062.5,24.37760013]
[1742969864636,0.18255951,2062.6,2062.5,24.37760013]
[1742969864832,5.62879,2062.9,2062.5,24.37760013]
[1742969865148,0.18317907,2062.8,2062.5,24.37760013]
[1742969865348,0.18317907,2062.8,2062.6,2.92261601]
[1742969866045,0.18317907,2062.8,2062.5,19.52912013]
[1742969866224,5.03110907,2062.8,2062.5,19.52912013]
[1742969869141,0.18317907,2062.8,2062.5,19.52912013]
[1742969870454,5.03097907,2062.8,2062.5,19.52912013]
[1742969872056,5.03097907,2062.8,2062.5,24.37759013]
[1742969872356,5.03097907,2062.8,2062.5,27.37738214]
[1742969874253,0.18317907,2062.8,2062.5,27.37738214]
[1742969876318,0.808,2062.7,2062.5,14.5]
[1742969876518,0.808,2062.7,2062.2,7.84905]
[1742969876519,5.0301769,2062.6,2062.2,7.84905]
[1742969876722,5.0301769,2062.6,2062.2,9.87817013]
[1742969876919,5.0301769,2062.6,2062.3,15.97274301]
[1742969877726,5.0301769,2062.6,2062.5,0.95183541]
[1742969880417,5.0301769,2062.6,2062.5,15.45183541]
[1742969882217,0.1818469,2062.6,2062.5,15.45183541]
[1742969883457,0.1818469,2062.6,2062.5,0.95183541]
[1742969884020,0.1818469,2062.6,2062.5,15.45183541]
[1742969885839,0.1818469,2062.6,2062.5,18.19237125]
[1742969886339,0.18120015,2062.6,2062.5,18.19237125]
[1742969886546,4.84779,2062.8,2062.5,18.19237125]
[1742969886745,0.18150994,2062.7,2062.5,15.45183541]
[1742969886948,4.84779,2062.8,2062.5,15.45183541]
[1742969887118,0.18150994,2062.7,2062.5,15.45183541]
[1742969887324,9.69577,2062.8,2062.5,15.45183541]
[1742969887559,5.02952994,2062.7,2062.5,15.45183541]
[1742969888221,0.18150994,2062.7,2062.5,15.45183541]
[1742969888626,5.65555,2062.9,2062.5,17.91040927]
[1742969888844,0.18120015,2062.6,2062.5,22.75877927]
[1742969889027,5.65555,2062.9,2062.5,17.91040927]
[1742969889222,0.18141922,2062.6,2062.5,17.91040927]
[1742969889429,4.84778,2062.8,2062.5,17.91040927]
[1742969889629,0.18149224,2062.6,2062.5,17.91040927]
[1742969889861,4.84778,2062.8,2062.5,17.91040927]
[1742969890030,0.18156526,2062.6,2062.5,17.91040927]
[1742969890223,4.84778,2062.8,2062.5,17.91040927]
[1742969890429,0.18163828,2062.6,2062.5,17.91040927]
[1742969890762,0.1817113,2062.6,2062.5,17.91040927]
[1742969890964,4.84778,2062.8,2062.5,17.91040927]
[1742969891127,0.18202107,2062.7,2062.5,17.91040927]
[1742969891329,4.84778,2062.8,2062.5,17.91040927]
[1742969891539,0.18202107,2062.7,2062.5,17.91040927]
[1742969891838,4.84778,2062.8,2062.5,17.91040927]
[1742969892038,0.1817113,2062.6,2062.5,17.91040927]
[1742969892249,4.84778,2062.8,2062.5,17.91040927]
[1742969892762,0.18202107,2062.7,2062.5,17.91040927]
[1742969892963,4.84778,2062.8,2062.5,17.91040927]
[1742969893164,0.18202107,2062.7,2062.5,17.91040927]
[1742969893364,4.84778,2062.8,2062.5,17.91040927]
[1742969893568,0.18202107,2062.7,2062.6,9.35603207]
[1742969893734,4.84733,2063.0,2062.6,10.16203207]
[1742969893935,0.18339388,2062.9,2062.6,10.16203207]
[1742969894158,0.18339388,2062.9,2062.7,14.5]
[1742969894468,0.18339388,2062.9,2062.7,17.54622675]
[1742969896377,0.18339388,2062.9,2062.8,0.45329419]
[1742969897670,0.18339388,2062.9,2062.8,14.95329419]
[1742969899868,0.18339388,2062.9,2062.8,16.98241432]
[1742969900173,5.62157,2063.1,2062.8,16.98241432]
[1742969900338,0.18399556,2063.0,2062.8,16.98241432]
[1742969900539,0.18399556,2063.0,2062.8,19.73087675]
[1742969901375,0.18399556,2063.0,2062.8,17.70175662]
[1742969901376,5.03132556,2063.0,2062.8,17.70175662]
[1742969901665,5.03132556,2063.0,2062.9,0.45329419]
[1742969902084,5.80582556,2063.0,2062.9,0.45329419]
[1742969902577,4.84806,2062.7,2062.5,0.95183541]
[1742969902739,4.84806,2062.7,2062.6,14.5]
[1742969903974,4.84806,2062.7,2062.6,14.95315113]
[1742969904174,10.47017,2062.8,2062.6,14.95315113]
[1742969904339,0.18306762,2062.7,2062.6,14.95315113]
[1742969904535,10.47017,2062.8,2062.6,14.95315113]
[1742969904739,0.18306762,2062.7,2062.6,14.95315113]
[1742969904940,10.47017,2062.8,2062.6,14.95315113]
[1742969905141,0.18306762,2062.7,2062.6,14.95315113]
[1742969905342,10.47017,2062.8,2062.6,14.95315113]
[1742969905573,0.18306762,2062.7,2062.6,14.95315113]
[1742969905893,10.47017,2062.8,2062.6,14.95315113]
[1742969906045,0.18306762,2062.7,2062.6,14.95315113]
[1742969906374,10.47017,2062.8,2062.6,14.95315113]
[1742969906565,0.18306762,2062.7,2062.6,14.95315113]
[1742969906753,10.47017,2062.8,2062.6,14.95315113]
[1742969906945,0.18306762,2062.7,2062.6,14.95315113]
[1742969907141,10.47017,2062.8,2062.6,17.2314318]
[1742969907342,0.18293437,2062.7,2062.6,17.2314318]
[1742969907542,5.62229,2062.8,2062.6,17.2314318]
[1742969907739,0.18293437,2062.7,2062.6,17.2314318]
[1742969907972,10.47027,2062.8,2062.6,17.2314318]
[1742969908153,0.18293437,2062.7,2062.6,14.95315113]
[1742969908477,10.47027,2062.8,2062.6,14.95315113]
[1742969908774,0.18293437,2062.7,2062.6,14.95315113]
[1742969908953,5.62229,2062.8,2062.6,14.95315113]
[1742969909155,0.18293437,2062.7,2062.6,14.95315113]
[1742969909351,5.62229,2062.8,2062.6,14.95315113]
[1742969909554,0.18293437,2062.7,2062.6,14.95315113]
[1742969909754,5.62229,2062.8,2062.6,14.95315113]
[1742969909955,0.18293437,2062.7,2062.6,14.95315113]
[1742969910147,4.84779,2062.8,2062.6,14.95315113]
[1742969910351,4.84779,2062.8,2062.7,0.45315113]
[1742969910979,4.84779,2062.8,2062.7,14.95315113]
[1742969911276,0.8146,2063.0,2062.7,14.95315113]
[1742969911479,9.6949,2063.0,2062.7,17.7964708]
[1742969911675,0.18342056,2062.9,2062.7,17.7964708]
[1742969911878,5.03098056,2062.9,2062.7,17.7964708]
[1742969912578,5.03098056,2062.9,2062.8,0.45315113]
[1742969914286,0.18342056,2062.9,2062.8,0.45315113]
[1742969914450,0.18342056,2062.9,2062.8,14.95315113]
[1742969914644,0.18342056,2062.9,2062.8,17.01354824]
[1742969917589,0.18342056,2062.9,2062.8,17.96562407]
[1742969918188,0.18342056,2062.9,2062.8,15.90522696]
[1742969918492,5.03096056,2062.9,2062.8,15.90522696]
[1742969918873,0.18342056,2062.9,2062.8,15.90522696]
[1742969921279,5.03096056,2062.9,2062.8,15.90522696]
[1742969921474,5.03096056,2062.9,2062.8,14.95315113]
[1742969921685,5.84156056,2062.9,2062.8,14.95315113]
[1742969936279,5.03096056,2062.9,2062.8,14.95315113]
[1742969938383,0.18342056,2062.9,2062.8,14.95315113]
[1742969943310,5.03096056,2062.9,2062.8,14.95315113]
[1742969945304,0.18342056,2062.9,2062.8,14.95315113]
[1742969950412,5.03096056,2062.9,2062.8,14.95315113]
[1742969951218,0.18342056,2062.9,2062.8,14.95315113]
[1742969952014,0.18342056,2062.9,2062.8,17.79567643]
[1742969952189,10.51329,2063.1,2062.8,17.79567643]
[1742969952394,0.18438962,2063.0,2062.8,17.79567643]
[1742969952705,0.18438962,2063.0,2062.9,0.45315113]
[1742969953279,0.18438962,2063.0,2062.9,16.08993205]
[1742969953485,0.18438962,2063.0,2062.9,18.26530426]
[1742969953686,4.84713,2063.1,2062.9,18.26530426]
[1742969953988,0.18446262,2063.0,2062.9,16.08993205]
[1742969954210,0.18446262,2063.0,2062.9,15.63678092]
[1742969955317,0.18446262,2063.0,2062.9,14.5]
[1742969955523,0.18446262,2063.0,2062.9,15.63678092]
[1742969956095,0.18446262,2063.0,2062.9,14.5]
[1742969958021,0.18446262,2063.0,2062.9,15.48094229]
[1742969959526,0.18446262,2063.0,2062.9,0.98094229]
[1742969959914,0.18446262,2063.0,2062.7,1.95278092]
[1742969960114,0.18446262,2063.0,2062.8,15.18009009]
[1742969961027,0.18446262,2063.0,2062.8,16.31687101]
[1742969962024,5.03179262,2063.0,2062.8,16.31687101]
[1742969962200,0.18446262,2063.0,2062.9,1.13678092]
[1742969962398,0.18446262,2063.0,2062.8,16.31687101]
[1742969962611,5.03179262,2063.0,2062.8,15.18009009]
[1742969966631,0.18446262,2063.0,2062.8,15.18009009]
[1742969969635,0.18446262,2063.0,2062.9,2.89854084]
[1742969969825,5.66293,2063.3,2062.9,3.61556802]
[1742969970030,0.18550688,2063.2,2062.9,1.90228092]
[1742969970205,5.66293,2063.3,2063.0,14.5]
[1742969970407,0.18550707,2063.2,2063.0,14.5]
[1742969970636,5.66293,2063.3,2063.0,14.5]
[1742969970815,0.18565302,2063.2,2063.0,14.5]
[1742969971026,5.66293,2063.3,2063.0,14.5]
[1742969971226,0.18572599,2063.2,2063.0,14.5]
[1742969971427,4.84684,2063.2,2063.0,14.5]
[1742969971608,0.18541639,2063.1,2063.0,14.5]
[1742969972033,0.18541639,2063.1,2063.0,16.6930021]
[1742969972339,4.84685,2063.2,2063.0,16.6930021]
[1742969972535,0.18541639,2063.1,2063.0,16.6930021]
[1742969973614,5.66293,2063.3,2063.0,16.6930021]
[1742969973939,0.18572599,2063.2,2063.0,17.82978302]
[1742969974142,5.03260599,2063.2,2063.0,16.6930021]
[1742969974331,4.84688,2063.2,2063.0,16.6930021]
[1742969974532,0.18541639,2063.1,2063.0,17.82978302]
[1742969975708,10.50971,2063.3,2063.0,17.82978302]
[1742969975909,0.18556234,2063.1,2063.0,17.82978302]
[1742969976214,0.18548937,2063.1,2063.0,17.82978302]
[1742969976427,10.50971,2063.3,2063.0,17.82978302]
[1742969976631,0.18572599,2063.2,2063.0,15.63678092]
[1742969976832,5.66289,2063.3,2063.0,15.63678092]
[1742969977049,0.18579896,2063.2,2063.0,15.63678092]
[1742969977344,5.66289,2063.3,2063.0,15.63678092]
[1742969977522,0.18548937,2063.1,2063.0,15.63678092]
[1742969977724,10.5097,2063.3,2063.0,17.82977502]
[1742969977911,0.18556234,2063.1,2063.0,15.63678092]
[1742969978116,10.5097,2063.3,2063.0,15.63678092]
[1742969978458,4.84669,2063.3,2063.0,15.63678092]
[1742969978668,0.18587193,2063.2,2063.0,15.63678092]
[1742969978817,4.84669,2063.3,2063.0,15.63678092]
[1742969979017,0.18587193,2063.2,2063.0,15.63678092]
[1742969979217,4.84669,2063.3,2063.0,17.82977502]
[1742969979430,0.18587193,2063.2,2063.0,15.63678092]
[1742969979624,9.69351,2063.3,2063.0,14.5]
[1742969979828,0.18587193,2063.2,2063.0,14.5]
[1742969980038,9.69349,2063.3,2063.0,14.5]
[1742969980245,0.18587193,2063.2,2063.0,14.5]
[1742969980549,4.84669,2063.3,2063.0,14.5]
[1742969980746,0.18563531,2063.1,2063.0,14.5]
[1742969980962,9.6935,2063.3,2063.0,14.5]
[1742969981150,0.18541639,2063.1,2063.0,14.5]
[1742969981315,9.6935,2063.3,2063.0,14.5]
[1742969981846,0.18620574,2063.2,2063.0,14.5]
[1742969982053,9.6935,2063.3,2063.0,14.5]
[1742969982218,0.18627871,2063.2,2063.0,14.5]
[1742969982417,9.6935,2063.3,2063.0,14.5]
[1742969982618,0.18627871,2063.2,2063.0,14.5]
[1742969982949,4.84684,2063.2,2063.0,14.5]
[1742969983243,0.18596912,2063.1,2063.0,14.5]
[1742969993465,0.18596912,2063.1,2063.0,16.06367809]
[1742969993633,0.78842084,2064.2,2063.0,17.20045901]
[1742969993955,4.84507,2064.0,2063.6,1.96728092]
[1742969994156,4.84507,2064.0,2063.6,0.8305]
[1742969994359,0.17026458,2063.9,2063.7,14.5]
[1742969995735,5.01548458,2063.9,2063.7,14.5]
[1742969996126,0.17026458,2063.9,2063.7,14.5]
[1742970000840,0.17388392,2063.8,2063.7,14.5]
[1742970001030,4.84506,2064.0,2063.7,14.5]
[1742970001340,0.16000469,2063.9,2063.7,14.5]
[1742970003668,0.16000469,2063.9,2063.7,16.14672809]
[1742970004765,0.16000469,2063.9,2063.7,17.28350901]
[1742970004965,4.84473,2064.1,2063.7,17.28350901]
[1742970005163,0.15976816,2063.8,2063.7,17.28350901]
[1742970005365,4.84473,2064.1,2063.7,16.14672809]
[1742970005664,4.84473,2064.1,2063.7,15.63678092]
[1742970005839,0.1603871,2064.0,2063.7,14.5]
[1742970006552,0.1603871,2064.0,2063.7,15.63678092]
[1742970006767,0.1603871,2064.0,2063.8,1.13678092]
[1742970006965,0.78842084,2064.2,2063.8,1.13678092]
[1742970007139,0.16146358,2063.9,2063.8,1.16586109]
[1742970007330,0.78842084,2064.2,2063.8,15.66586109]
[1742970007536,0.16162336,2063.9,2063.8,15.66586109]
[1742970007738,0.78842084,2064.2,2063.8,15.66586109]
[1742970007936,0.16162336,2063.9,2063.8,15.66586109]
[1742970008147,5.63294084,2064.2,2063.8,15.66586109]
[1742970008349,0.16162336,2063.9,2063.8,14.5]
[1742970008549,4.84474,2064.1,2063.8,14.5]
[1742970008749,0.16162336,2063.9,2063.8,14.5]
[1742970009073,0.16169629,2063.9,2063.8,14.5]
[1742970009271,4.84474,2064.1,2063.8,14.5]
[1742970009468,0.16200567,2064.0,2063.8,14.5]
[1742970010999,5.00705567,2064.0,2063.8,14.5]
[1742970011170,5.62509,2063.9,2063.8,14.5]
[1742970011667,5.77263299,2063.9,2063.8,14.5]
[1742970011840,0.92744299,2063.9,2063.8,14.5]
[1742970012777,5.77263299,2063.9,2063.8,14.5]
[1742970014343,5.77263299,2063.9,2063.5,4.13678092]
[1742970014544,0.92744299,2063.9,2063.5,10.90475701]
[1742970014750,0.14754299,2063.9,2063.6,15.63678092]
[1742970015174,0.14754299,2063.9,2063.6,14.5]
[1742970015676,4.99278299,2063.9,2063.6,14.5]
[1742970016881,4.99275299,2063.9,2063.6,14.5]
[1742970018498,4.84544,2063.8,2063.6,14.5]
[1742970018660,0.14644107,2063.7,2063.6,14.5]
[1742970018979,4.84544,2063.8,2063.6,14.5]
[1742970019184,0.14644107,2063.7,2063.6,14.5]
[1742970019480,4.84544,2063.8,2063.6,14.5]
[1742970019681,0.1463681,2063.7,2063.6,14.5]
[1742970019878,4.84544,2063.8,2063.6,14.5]
[1742970020052,0.1463681,2063.7,2063.6,14.5]
[1742970020379,4.84544,2063.8,2063.6,14.5]
[1742970020559,0.1463681,2063.7,2063.6,14.5]
[1742970020966,10.47046,2063.9,2063.6,14.5]
[1742970021173,0.14644107,2063.7,2063.6,14.5]
[1742970021374,10.47046,2063.9,2063.6,14.5]
[1742970021571,0.14644107,2063.7,2063.6,14.5]
[1742970021782,5.62527,2063.9,2063.6,14.5]
[1742970021981,0.14644107,2063.7,2063.6,14.5]
[1742970022157,4.84543,2063.8,2063.6,14.5]
[1742970022362,0.14644107,2063.7,2063.6,14.5]
[1742970022755,4.84543,2063.8,2063.6,14.5]
[1742970023085,0.14638782,2063.7,2063.6,14.5]
[1742970023284,4.84543,2063.8,2063.6,14.5]
[1742970023766,0.14638782,2063.7,2063.6,14.5]
[1742970024166,5.62515,2063.9,2063.6,14.5]
[1742970024367,0.14638782,2063.7,2063.6,14.5]
[1742970025096,5.62515,2063.9,2063.6,14.5]
[1742970025271,0.14669732,2063.8,2063.6,14.5]
[1742970026060,0.14669732,2063.8,2063.7,0.7719]
[1742970026261,0.14669732,2063.8,2063.7,5.61756]
[1742970026573,4.84473,2064.1,2063.7,5.61756]
[1742970026775,0.14677028,2063.8,2063.7,21.25434092]
[1742970026981,5.62255084,2064.2,2063.7,26.09978092]
[1742970027170,0.14677028,2063.8,2063.7,24.16409901]
[1742970027368,5.62255084,2064.2,2063.7,24.16409901]
[1742970027369,10.46723084,2064.2,2063.7,24.16409901]
[1742970027578,0.1469162,2063.8,2063.7,24.16409901]
[1742970028086,4.85155084,2064.2,2063.8,4.84537]
[1742970028503,4.85155084,2064.2,2063.7,29.00959901]
[1742970028658,4.85155084,2064.2,2063.8,2.9009599]
[1742970028860,4.85155084,2064.2,2063.8,7.7463199]
[1742970030308,9.69626084,2064.2,2063.8,2.9009599]
[1742970031515,4.84472,2064.1,2063.8,2.9009599]
[1742970031823,5.1467341,2064.1,2063.8,2.9009599]
[1742970032128,5.1467341,2064.1,2063.9,14.5]
[1742970035414,5.1467341,2064.1,2063.7,6.75430092]
[1742970035806,5.1467341,2064.1,2063.8,14.5]
[1742970039722,0.3020141,2064.1,2063.9,5.98178092]
[1742970040087,0.3020141,2064.1,2063.9,6.73818092]
[1742970040418,0.3020141,2064.1,2064.0,15.65835909]
[1742970040818,0.00702084,2064.2,2064.0,15.65835909]
[1742970041119,0.30196086,2064.1,2064.0,15.65835909]
[1742970043128,0.30196086,2064.1,2064.0,14.5]
[1742970043129,5.90828086,2064.1,2064.0,14.5]
[1742970045389,0.30196086,2064.1,2064.0,14.5]
[1742970049020,0.30196086,2064.1,2064.0,16.60330995]
[1742970049521,0.30209391,2064.1,2064.0,21.44826995]
[1742970049694,0.30209391,2064.1,2064.0,24.44826995]
[1742970049895,0.00702084,2064.2,2064.1,7.84472]
[1742970050096,0.00702084,2064.2,2064.1,9.73790092]
[1742970050613,0.00702084,2064.2,2064.1,24.23790092]
[1742970052023,0.00702084,2064.2,2064.1,23.23790092]
[1742970056409,0.00702084,2064.2,2064.1,23.61005248]
[1742970056610,0.00702084,2064.2,2064.1,27.32760703]
[1742970058904,0.00702084,2064.2,2064.1,28.31166841]
[1742970070632,0.00702084,2064.2,2064.1,28.86166841]
[1742970070831,0.00702084,2064.2,2064.1,29.99844933]
[1742970073150,0.00702084,2064.2,2064.1,28.86166841]
[1742970075348,0.00702084,2064.2,2064.1,29.99844933]
[1742970076551,0.00702084,2064.2,2064.1,28.86166841]
[1742970077152,0.00702084,2064.2,2064.1,29.99844933]
[1742970077357,0.00702084,2064.2,2064.1,28.86166841]
[1742970080957,0.00702084,2064.2,2064.1,15.85621294]
[1742970081156,4.85151084,2064.2,2064.1,15.48406138]
[1742970081452,0.00702084,2064.2,2064.1,18.48406138]
[1742970081831,0.3156933,2064.2,2064.1,15.48406138]
[1742970082037,5.1601833,2064.2,2064.1,15.48406138]
[1742970082220,6.16062763,2064.2,2064.1,15.48406138]
[1742970084348,6.16062763,2064.2,2064.1,0.98406138]
[1742970084659,6.16062763,2064.2,2064.0,3.0]
[1742970084861,6.16062763,2064.2,2064.1,14.5]
[1742970085060,0.3156933,2064.2,2064.1,14.5]
[1742970085862,0.3156933,2064.2,2064.1,17.1301]
[1742970086241,5.1601833,2064.2,2064.1,17.1301]
[1742970086448,4.85151084,2064.2,2064.1,17.1301]
[1742970086772,5.1601833,2064.2,2064.1,17.1301]
[1742970088064,0.3156933,2064.2,2064.1,17.1301]
[1742970089061,5.1601833,2064.2,2064.1,17.1301]
[1742970089266,6.94362763,2064.2,2064.1,17.1301]
[1742970093068,6.94362763,2064.2,2064.1,18.07904369]
[1742970094370,2.09913763,2064.2,2064.1,18.07904369]
[1742970094935,1.31613763,2064.2,2064.1,18.07904369]
[1742970095133,6.16062763,2064.2,2064.1,18.07904369]
[1742970095369,1.31613763,2064.2,2064.1,18.07904369]
[1742970095558,0.3156933,2064.2,2064.1,18.07904369]
[1742970095757,0.00702084,2064.2,2064.1,18.07904369]
[1742970096870,5.15837405,2064.2,2064.1,18.07904369]
[1742970097038,4.85151084,2064.2,2064.1,18.07904369]
[1742970097239,5.15844522,2064.2,2064.1,18.07904369]
[1742970098273,5.15844522,2064.2,2064.1,3.57904369]
[1742970098470,0.31395522,2064.2,2064.1,3.57904369]
[1742970098673,0.31395522,2064.2,2064.1,2.6301]
[1742970098970,0.3121992,2064.2,2064.1,17.1301]
[1742970099461,2.0273465,2064.4,2064.1,14.5]
[1742970099661,0.63778922,2064.3,2064.1,14.5]
[1742970100167,0.27974683,2064.2,2064.1,14.5]
[1742970100371,0.63778922,2064.3,2064.1,14.5]
[1742970100535,0.27974683,2064.2,2064.1,14.5]
[1742970100740,0.63778922,2064.3,2064.1,14.5]
[1742970101105,0.27974683,2064.2,2064.1,14.5]
[1742970101371,0.63778922,2064.3,2064.1,14.5]
[1742970101548,0.27974683,2064.2,2064.1,14.5]
[1742970101750,0.63778922,2064.3,2064.1,14.5]
[1742970101949,0.27974683,2064.2,2064.1,14.5]
[1742970102283,0.63778922,2064.3,2064.1,14.5]
[1742970102485,0.5462604,2064.2,2063.9,0.98094863]
[1742970102839,0.5462604,2064.2,2064.0,14.5]
[1742970103071,0.27974683,2064.2,2064.0,14.5]
[1742970103283,1.77334335,2064.3,2064.0,14.5]
[1742970103570,0.27974683,2064.2,2064.0,14.5]
[1742970103873,1.77334335,2064.3,2064.0,14.5]
[1742970104168,1.04994683,2064.2,2064.0,14.5]
[1742970104383,1.77334335,2064.3,2064.0,15.2843]
[1742970104678,0.27974683,2064.2,2064.0,15.2843]
[1742970105087,1.77334335,2064.3,2064.0,15.2843]
[1742970105454,0.27974683,2064.2,2064.0,15.2843]
[1742970105788,1.77334335,2064.3,2064.0,15.2843]
[1742970105997,0.27974683,2064.2,2064.0,15.2843]
[1742970106282,1.13555413,2064.3,2064.0,15.2843]
[1742970106687,0.27974683,2064.2,2064.0,15.2843]
[1742970107056,1.13555413,2064.3,2064.0,15.2843]
[1742970107380,0.27974683,2064.2,2064.0,15.2843]
[1742970107570,1.13555413,2064.3,2064.0,15.2843]
[1742970107770,0.27974683,2064.2,2064.0,15.2843]
[1742970107977,1.13555413,2064.3,2064.0,15.2843]
[1742970108285,0.27974683,2064.2,2064.0,15.2843]
[1742970108596,1.13555413,2064.3,2064.0,15.2843]
[1742970108786,0.27974683,2064.2,2064.1,0.8046]
[1742970108968,5.74655413,2064.7,2064.1,1.13555413]
[1742970109166,0.28036856,2064.6,2064.2,0.8046]
[1742970109754,1.41592269,2064.6,2064.2,0.8046]
[1742970109958,2.01861496,2064.6,2064.2,0.8046]
[1742970112267,2.01861496,2064.6,2064.3,14.5]
[1742970117066,1.13555413,2064.5,2064.3,15.47746038]
[1742970117463,5.12434389,2064.4,2064.3,15.47746038]
[1742970119397,0.28032389,2064.4,2064.3,15.47746038]
[1742970120705,0.28032389,2064.4,2064.3,14.5]
[1742970121364,5.12434389,2064.4,2064.3,14.5]
[1742970133299,5.12434389,2064.4,2064.3,15.3114]
[1742970134397,0.28032389,2064.4,2064.3,18.19071468]
[1742970134713,9.68736,2064.6,2064.4,0.8114]
[1742970134933,4.84378,2064.5,2064.4,0.8114]
[1742970135094,5.12451164,2064.5,2064.4,0.8114]
[1742970135294,5.12451164,2064.5,2064.4,15.3114]
[1742970138528,0.28073164,2064.5,2064.4,16.95609541]
[1742970139090,5.12451164,2064.5,2064.4,16.95609541]
[1742970140618,5.12451164,2064.5,2064.4,17.94557389]
[1742970141533,0.28073164,2064.5,2064.4,17.94557389]
[1742970142899,0.28073164,2064.5,2064.4,23.92514802]
[1742970143104,4.89286,2064.9,2064.5,0.8114]
[1742970143306,4.84309,2064.8,2064.7,0.8114]
[1742970143702,4.84309,2064.8,2064.7,15.3114]